bitfinex/quotes_SOLUSD_20220307
["timestamp","ask_amount","ask_price","bid_price","bid_amount"]
[1646677380426,1.59157126,83.021,82.952,120.3]
[1646677380625,1.59157126,83.024,82.954,120.3]
[1646677380824,1.59157126,83.024,82.956,120.3]
[1646677381027,9.16249809,83.023,82.958,120.3]
[1646677381225,9.16249809,83.023,82.959,6.25]
[1646677381427,1.59157126,83.022,82.959,0.25]
[1646677381728,1.59157126,83.021,82.959,0.25]
[1646677381928,7.61557126,83.02,82.959,0.25]
[1646677382126,1.59157126,83.017,82.959,0.25]
[1646677382325,9.16249809,83.023,82.96,18.0814]
[1646677382326,1.59157126,83.018,82.96,18.0814]
[1646677382527,6.024,83.017,82.961,0.25]
[1646677382725,1.59157126,83.02,82.947,0.25]
[1646677382926,1.59157126,83.02,82.934,29.99048875]
[1646677382927,6.0,83.019,82.945,120.3]
[1646677383129,6.0,83.021,82.945,120.3]
[1646677383327,1.59157126,83.018,82.945,149.24455333]
[1646677383526,1.59157126,83.016,82.946,47.14323441]
[1646677383728,1.59157126,83.016,82.947,6.0]
[1646677383929,1.59157126,83.018,82.947,6.0]
[1646677384130,1.59157126,83.016,82.97,62.79805817]
[1646677384327,1.59157126,83.016,82.971,0.25]
[1646677384627,1.59157126,83.016,82.961,6.25]
[1646677385228,1.59157126,83.015,82.961,6.25]
[1646677385428,1.59157126,83.015,82.961,0.25]
[1646677385829,1.59157126,83.013,82.948,0.25]
[1646677386029,0.43168865,83.012,82.948,0.25]
[1646677386428,1.59157126,83.008,82.941,39.74157747]
[1646677386635,4.97833465,83.007,82.941,39.74157747]
[1646677387229,4.97833465,83.007,82.96,18.0795]
[1646677387432,4.97833465,83.007,82.961,0.25]
[1646677387931,1.59157126,83.005,82.961,0.25]
[1646677388131,1.59157126,83.004,82.97,18.0789]
[1646677388431,1.59157126,82.996,82.934,65.70915516]
[1646677388631,1.59157126,82.995,82.934,65.70915516]
[1646677388831,9.04328202,82.994,82.936,6.0]
[1646677389032,9.04328202,82.994,82.95,0.63349787]
[1646677389232,0.57701798,82.993,82.96,18.0809]
[1646677389431,9.04328202,82.994,82.96,18.0809]
[1646677390333,10.63485328,82.994,82.961,0.25]
[1646677390732,0.72108832,82.993,82.961,0.25]
[1646677390931,1.59157126,82.99,82.95,0.63349787]
[1646677391131,0.47108832,82.988,82.95,0.63349787]
[1646677391533,48.01597126,82.989,82.95,0.63349787]
[1646677392032,1.59157126,82.988,82.95,0.63349787]
[1646677392433,46.4244,82.989,82.95,0.63349787]
[1646677392835,1.59157126,82.997,82.95,0.63349787]
[1646677393032,6.0,82.996,82.95,0.63349787]
[1646677393234,6.0,82.996,82.95,18.71649787]
[1646677393432,12.026,82.996,82.951,0.25]
[1646677393632,12.026,82.996,82.95,0.63349787]
[1646677394137,1.59157126,82.994,82.95,0.63349787]
[1646677394434,1.59157126,82.988,82.943,0.8831589]
[1646677394634,1.59157126,82.988,82.943,0.6331589]
[1646677394635,6.0,82.987,82.943,0.6331589]
[1646677395034,6.0,82.99,82.943,0.6331589]
[1646677395436,6.0,82.993,82.95,18.0832]
[1646677395634,24.8076,82.995,82.951,0.25]
[1646677396435,24.8076,82.995,82.96,18.0782]
[1646677396638,0.25,82.994,82.961,0.25]
[1646677397539,0.25,82.994,82.97,18.079]
[1646677398339,24.8076,82.995,82.971,38.97922059]
[1646677398538,35.24801525,83.029,82.971,38.97922059]
[1646677398539,1.59157126,83.007,82.98,18.0736]
[1646677398738,1.59157126,83.008,82.981,0.25]
[1646677398938,1.59157126,83.007,82.981,0.25]
[1646677399139,1.59157126,83.006,82.981,0.25]
[1646677399738,1.59157126,83.006,82.953,0.63298942]
[1646677399938,1.59157126,83.006,82.97,60.2454]
[1646677400145,1.59157126,83.005,82.971,46.20463621]
[1646677400541,6.024,83.03,82.971,46.20463621]
[1646677400542,1.59157126,83.007,82.972,120.3]
[1646677400739,14.43,83.07,82.972,120.3]
[1646677400740,1.59157126,83.013,82.973,0.25]
[1646677400939,1.59157126,83.014,82.973,0.25]
[1646677401139,1.59157126,83.013,82.973,0.25]
[1646677401442,1.59157126,83.013,82.981,120.3]
[1646677401646,1.59157126,83.023,82.983,120.3]
[1646677401843,1.59157126,83.027,82.985,120.3]
[1646677402045,1.59157126,83.027,82.987,120.3]
[1646677402243,1.59157126,83.032,82.988,6.25]
[1646677402444,1.59157126,83.031,82.99,18.0689]
[1646677402749,1.59157126,83.034,82.991,0.25]
[1646677402961,1.59157126,83.033,82.991,0.25]
[1646677403360,1.59157126,83.03,82.991,0.25]
[1646677403560,1.59157126,83.031,83.0,18.0726]
[1646677403761,1.59157126,83.031,82.991,120.55]
[1646677403762,1.59157126,83.031,83.001,6.25]
[1646677403963,1.59157126,83.032,83.001,6.25]
[1646677404163,1.59157126,83.031,83.001,0.25]
[1646677404361,12.20439315,83.036,83.001,0.25]
[1646677404562,1.59157126,83.035,83.001,0.25]
[1646677404761,1.59157126,83.038,82.982,0.25]
[1646677404962,1.59157126,83.037,82.982,0.25]
[1646677405162,1.59157126,83.037,83.01,18.0697]
[1646677405363,1.59157126,83.037,82.97,14.43]
[1646677405562,23.4619,83.05,82.927,4.09605414]
[1646677405563,1.59157126,83.03,82.962,18.096]
[1646677405766,1.59157126,83.022,82.963,6.0]
[1646677405965,0.77469177,83.021,82.963,6.0]
[1646677406165,0.77469177,83.021,82.98,18.0774]
[1646677406364,1.59157126,83.025,82.982,160.51235186]
[1646677406564,1.59157126,83.028,82.983,6.0]
[1646677406765,1.59157126,83.028,82.984,0.25]
[1646677407065,1.59157126,83.029,82.984,0.25]
[1646677407266,1.59157126,83.035,82.983,0.25]
[1646677407764,1.59157126,83.035,82.99,18.0689]
[1646677407964,10.74593043,83.034,82.991,0.25]
[1646677408166,0.25,83.033,82.97,14.43]
[1646677408367,1.59157126,83.024,82.961,18.1653]
[1646677408564,0.60217423,83.022,82.961,18.1653]
[1646677408764,6.25,83.023,82.945,28.94455333]
[1646677408765,7.84157126,83.023,82.951,120.3]
[1646677408966,1.59157126,83.022,82.98,18.0768]
[1646677409165,3.39490231,83.02,82.98,18.0768]
[1646677409365,0.25,83.021,82.98,18.0768]
[1646677409565,6.25,83.021,82.98,18.0768]
[1646677409765,0.25,83.019,82.981,0.25]
[1646677410165,0.25,83.019,82.99,18.0748]
[1646677410971,1.84157126,83.019,82.981,0.25]
[1646677411171,1.59157126,83.018,82.962,6.25]
[1646677411470,0.79361636,83.017,82.962,0.25]
[1646677411670,3.27170115,83.016,82.962,39.69788003]
[1646677411870,0.25,83.015,82.98,18.0767]
[1646677412070,0.25,83.015,82.981,0.25]
[1646677412270,0.41053887,83.014,82.962,0.25]
[1646677412470,24.3991,83.015,82.962,0.25]
[1646677412676,6.0,83.014,82.962,0.25]
[1646677412871,0.25,83.013,82.962,0.25]
[1646677413272,0.25,83.013,82.947,0.25]
[1646677413673,0.25,83.013,82.97,18.0793]
[1646677413876,0.25,83.013,82.971,0.25]
[1646677414073,0.25,83.013,82.97,18.0793]
[1646677414274,1.84157126,83.013,82.97,18.0793]
[1646677414576,6.0,83.012,82.97,18.0793]
[1646677414773,0.25,83.011,82.97,18.0793]
[1646677414974,0.5960117,83.01,82.93,60.2736]
[1646677415173,1.59157126,83.006,82.922,168.5781]
[1646677415374,2.31152859,83.004,82.94,0.25]
[1646677415674,1.59157126,82.993,82.921,27.42643933]
[1646677415873,15.93442125,82.992,82.94,18.0844]
[1646677416080,0.49575338,82.991,82.921,27.42643933]
[1646677416277,0.49575338,82.988,82.913,27.20132719]
[1646677416477,0.49575338,82.986,82.913,27.20132719]
[1646677416675,0.49575338,82.984,82.913,27.20132719]
[1646677416877,0.49575338,82.982,82.913,27.20132719]
[1646677417079,23.5792,82.981,82.913,27.20132719]
[1646677417279,3.58479756,82.979,82.93,18.088]
[1646677417579,6.25,82.978,82.93,18.088]
[1646677418279,6.25,82.978,82.931,0.25]
[1646677418681,6.027,82.977,82.931,0.25]
[1646677418886,6.25,82.976,82.931,0.25]
[1646677419080,6.027,82.975,82.93,18.088]
[1646677419280,0.81243606,82.973,82.907,27.42643933]
[1646677419480,6.027,82.972,82.89,20.71082716]
[1646677419680,7.06243606,82.971,82.891,27.39640933]
[1646677419880,0.81243606,82.969,82.891,27.39640933]
[1646677420081,6.029,82.968,82.892,40.68291046]
[1646677420285,8.96446392,82.966,82.892,160.98291046]
[1646677420481,12.279,82.965,82.9,18.0932]
[1646677420681,12.279,82.965,82.901,0.25]
[1646677420881,23.6483,82.964,82.901,0.25]
[1646677421083,12.277,82.963,82.901,0.25]
[1646677421782,0.44046828,82.962,82.89,60.3062]
[1646677421983,6.029,82.961,82.89,60.3062]
[1646677422184,24.3433,82.96,82.91,18.0923]
[1646677422382,6.027,82.959,82.91,18.0923]
[1646677422582,6.25,82.958,82.91,18.0923]
[1646677422783,6.027,82.957,82.91,18.0923]
[1646677422983,6.25,82.956,82.91,18.0923]
[1646677423185,6.027,82.955,82.911,0.25]
[1646677423384,6.027,82.955,82.91,18.0923]
[1646677423385,6.25,82.954,82.9,18.0947]
[1646677423587,6.51008919,82.953,82.876,26.57774681]
[1646677423790,6.25,82.952,82.876,26.57774681]
[1646677423987,6.69672358,82.951,82.866,32.60774681]
[1646677424187,6.25,82.95,82.866,32.60774681]
[1646677424487,9.61479756,82.949,82.881,39.01886717]
[1646677424687,6.25,82.948,82.881,39.01886717]
[1646677424887,6.25,82.948,82.882,6.03]
[1646677425288,6.25,82.948,82.881,39.01886717]
[1646677425289,6.03,82.947,82.881,39.01886717]
[1646677425488,18.0982,82.94,82.881,39.01886717]
[1646677425791,35.1135,82.939,82.882,0.25]
[1646677426292,35.1135,82.939,82.871,0.25]
[1646677426891,18.1,82.93,82.87,18.101]
[1646677427096,9.56478476,82.928,82.855,26.57774681]
[1646677427294,0.60032084,82.926,82.843,35.03622808]
[1646677427491,12.281,82.927,82.843,35.03622808]
[1646677427492,0.60032084,82.924,82.843,35.03622808]
[1646677427691,6.032,82.923,82.843,35.03622808]
[1646677427901,6.25,82.922,82.843,35.03622808]
[1646677428094,6.032,82.921,82.843,35.03622808]
[1646677428296,6.25,82.92,82.844,0.25]
[1646677428495,6.032,82.919,82.844,0.25]
[1646677428694,29.5702,82.918,82.844,0.25]
[1646677428898,6.55114344,82.917,82.831,0.25]
[1646677429116,18.1069,82.91,82.85,18.1047]
[1646677429315,12.282,82.909,82.851,0.25]
[1646677429716,3.58479756,82.908,82.851,0.25]
[1646677429920,6.25,82.907,82.851,0.25]
[1646677430218,6.25,82.907,82.852,15.20454555]
[1646677430415,0.25,82.907,82.86,18.1027]
[1646677430617,0.25,82.907,82.861,0.25]
[1646677430815,6.282,82.907,82.861,0.25]
[1646677431220,0.25,82.907,82.861,0.25]
[1646677433319,0.25,82.907,82.87,18.1]
[1646677433518,0.25,82.907,82.871,0.25]
[1646677433719,23.6789,82.908,82.871,0.25]
[1646677434318,23.1963,82.927,82.881,37.03158281]
[1646677434518,24.9287,82.937,82.882,0.25]
[1646677435118,24.9287,82.937,82.882,6.25]
[1646677435319,24.9287,82.937,82.891,120.3]
[1646677435518,24.9287,82.937,82.892,6.25]
[1646677435718,24.2995,82.955,82.893,120.3]
[1646677435918,24.2995,82.955,82.895,120.3]
[1646677436119,6.029,82.986,82.897,120.3]
[1646677436320,100.0,82.987,82.911,120.3]
[1646677436519,7.0,83.049,82.931,120.3]
[1646677436520,6.027,83.021,82.931,120.3]
[1646677436722,9.10598496,83.03,82.941,120.3]
[1646677436924,9.10598496,83.03,82.943,120.3]
[1646677437121,6.025,83.029,82.945,120.3]
[1646677437324,6.025,83.029,82.949,120.3]
[1646677437522,6.024,83.037,82.951,120.3]
[1646677437724,6.024,83.037,82.97,18.0751]
[1646677437924,0.25,83.036,82.971,0.25]
[1646677438324,18.0794,83.03,82.94,18.0498]
[1646677438524,0.7903195,83.028,82.932,17.9905]
[1646677438728,0.89041698,83.025,82.898,18.3787]
[1646677438925,0.89041698,83.023,82.91,14.43]
[1646677439128,0.89041698,83.021,82.91,74.7146]
[1646677439329,6.026,83.02,82.912,120.3]
[1646677439528,9.19613293,83.021,82.912,185.37]
[1646677439725,6.25,83.02,82.921,120.3]
[1646677439926,6.25,83.02,82.931,120.3]
[1646677439927,6.026,83.019,82.931,120.3]
[1646677440128,6.25,83.018,82.933,46.52061632]
[1646677440330,6.025,83.017,82.934,6.25]
[1646677440529,6.25,83.016,82.935,120.3]
[1646677440729,6.025,83.015,82.951,120.3]
[1646677440929,6.0,83.014,82.953,120.3]
[1646677441129,29.9011,83.016,82.955,120.3]
[1646677441332,29.9011,83.016,82.957,120.3]
[1646677441528,29.9011,83.016,82.959,120.3]
[1646677441727,29.9011,83.016,82.961,120.3]
[1646677441929,29.9011,83.016,82.962,0.25]
[1646677442131,29.9011,83.016,82.97,18.0728]
[1646677442328,31.01550069,83.016,82.971,0.25]
[1646677442528,31.01550069,83.016,82.96,46.2054936]
[1646677442529,0.25,83.015,82.96,46.2054936]
[1646677442728,6.025,83.014,82.96,46.2054936]
[1646677442928,6.25,83.013,82.96,46.2054936]
[1646677443330,6.25,83.013,82.96,6.0]
[1646677443530,0.44221354,83.011,82.941,6.0]
[1646677443829,0.44353326,83.009,82.941,6.0]
[1646677444029,6.69353326,83.009,82.941,6.0]
[1646677444230,0.44353326,83.007,82.941,6.0]
[1646677444433,6.025,83.006,82.941,6.0]
[1646677444633,6.81461677,83.005,82.95,18.0829]
[1646677444832,6.025,83.004,82.951,0.25]
[1646677445033,6.25,83.003,82.951,0.25]
[1646677445233,6.72570971,83.002,82.931,0.25]
[1646677445432,6.25,83.001,82.931,0.25]
[1646677445633,6.026,83.0,82.931,0.25]
[1646677445834,6.25,82.999,82.94,18.0851]
[1646677446034,6.026,82.998,82.941,0.25]
[1646677446235,6.25,82.997,82.931,0.25]
[1646677446435,6.50565134,82.996,82.931,0.25]
[1646677446635,6.25,82.995,82.891,120.3]
[1646677446835,120.3,82.989,82.9,18.0941]
[1646677447038,120.3,82.987,82.9,18.0941]
[1646677447235,120.3,82.987,82.881,17.6593]
[1646677447236,120.3,82.985,82.88,14.43]
[1646677447437,120.3,82.977,82.881,6.0]
[1646677447636,0.89041698,82.974,82.876,6.0]
[1646677447836,0.89041698,82.972,82.87,41.73571512]
[1646677448037,0.89041698,82.97,82.87,41.73571512]
[1646677448238,18.0947,82.97,82.88,18.0985]
[1646677448437,6.25,82.969,82.88,18.0985]
[1646677448637,2.83613526,82.969,82.88,18.0985]
[1646677448837,9.08613526,82.968,82.881,0.25]
[1646677449038,0.46281161,82.967,82.871,0.25]
[1646677449237,0.46281161,82.965,82.871,0.25]
[1646677449438,18.0965,82.95,82.88,18.0982]
[1646677449742,18.0965,82.95,82.881,0.25]
[1646677449743,12.95001522,82.949,82.881,0.25]
[1646677450039,0.52162096,82.948,82.881,0.25]
[1646677450239,0.52162096,82.946,82.881,0.25]
[1646677450441,6.03,82.945,82.881,0.25]
[1646677450639,18.1001,82.94,82.881,0.25]
[1646677450840,12.28,82.939,82.85,100.57008896]
[1646677451042,0.73236053,82.938,82.84,14.43]
[1646677451239,30.798,82.937,82.829,25.80758896]
[1646677451439,30.798,82.937,82.83,14.43]
[1646677451440,31.37766053,82.936,82.83,14.43]
[1646677451641,6.032,82.935,82.831,120.3]
[1646677451842,6.25,82.934,82.832,45.48412463]
[1646677452041,6.032,82.933,82.832,45.48412463]
[1646677452246,18.1037,82.92,82.84,18.1071]
[1646677452440,12.282,82.919,82.841,6.0]
[1646677452642,49.2795,82.918,82.833,6.0]
[1646677452841,12.283,82.917,82.833,6.0]
[1646677453241,18.1046,82.91,82.85,18.1037]
[1646677453440,12.282,82.909,82.851,0.25]
[1646677454242,12.282,82.909,82.86,18.1035]
[1646677454441,6.25,82.909,82.861,0.25]
[1646677454640,0.25,82.909,82.851,0.25]
[1646677454843,0.25,82.915,82.851,0.25]
[1646677455242,0.25,82.916,82.851,0.25]
[1646677455642,6.032,82.915,82.851,0.25]
[1646677455843,6.25,82.914,82.851,0.25]
[1646677456047,6.032,82.913,82.851,0.25]
[1646677456244,6.25,82.912,82.87,18.1002]
[1646677456444,6.25,82.912,82.871,0.25]
[1646677456646,6.25,82.912,82.831,25.80758896]
[1646677456844,0.49406634,82.91,82.831,25.80758896]
[1646677457045,0.74406634,82.91,82.831,25.80758896]
[1646677457245,0.25,82.912,82.831,25.80758896]
[1646677457547,18.1054,82.91,82.841,42.96363346]
[1646677457745,6.25,82.909,82.841,42.96363346]
[1646677457944,6.25,82.909,82.842,0.25]
[1646677458346,6.25,82.909,82.85,18.1044]
[1646677458547,0.25,82.909,82.85,18.1044]
[1646677458748,6.282,82.915,82.85,18.1044]
[1646677458948,6.0,82.914,82.85,18.1044]
[1646677459148,6.282,82.913,82.85,18.1044]
[1646677459348,6.0,82.912,82.85,18.1044]
[1646677459548,6.282,82.911,82.85,18.1044]
[1646677459750,6.282,82.911,82.851,0.25]
[1646677459751,24.1049,82.91,82.851,0.25]
[1646677459948,6.282,82.909,82.851,0.25]
[1646677460152,6.0,82.908,82.851,0.25]
[1646677460348,6.282,82.907,82.851,0.25]
[1646677460549,6.282,82.907,82.86,18.103]
[1646677460550,6.0,82.906,82.86,18.103]
[1646677460748,0.25,82.905,82.861,0.25]
[1646677461048,0.25,82.905,82.861,46.3871894]
[1646677461248,6.0,82.917,82.861,46.3871894]
[1646677461449,49.2795,82.918,82.861,46.3871894]
[1646677461653,49.2795,82.918,82.861,166.6871894]
[1646677461848,49.2795,82.918,82.87,18.0995]
[1646677462048,49.2795,82.918,82.871,0.25]
[1646677462249,49.2795,82.918,82.862,6.0]
[1646677462548,6.032,82.958,82.863,0.25]
[1646677462752,55.2006,82.935,82.863,0.25]
[1646677462971,55.2006,82.935,82.88,18.0947]
[1646677463269,55.2006,82.935,82.881,42.58219971]
[1646677464071,49.2006,82.935,82.881,42.58219971]
[1646677464272,49.2006,82.935,82.89,18.0943]
[1646677464473,49.2006,82.935,82.891,0.25]
[1646677465274,49.2006,82.935,82.9,18.0925]
[1646677465571,49.2006,82.935,82.901,41.84999417]
[1646677466573,0.25,82.935,82.901,41.84999417]
[1646677466772,6.25,82.959,82.901,41.84999417]
[1646677466972,6.029,82.958,82.91,18.0923]
[1646677467172,6.029,82.958,82.911,0.25]
[1646677467373,6.027,82.963,82.911,0.25]
[1646677467674,6.0,82.962,82.911,0.25]
[1646677467977,75.3303,82.991,82.911,0.25]
[1646677468177,46.2638,82.99,82.92,18.0902]
[1646677468473,52.2908,82.99,82.921,36.31122832]
[1646677469974,52.2908,82.99,82.921,0.25]
[1646677470173,52.2908,82.99,82.912,0.25]
[1646677470586,6.0,82.972,82.912,0.25]
[1646677470988,46.2638,82.99,82.912,43.74011612]
[1646677472191,64.3512,82.99,82.92,18.0901]
[1646677472392,64.3512,82.99,82.921,0.25]
[1646677472993,46.2638,82.99,82.921,0.25]
[1646677473199,0.58991049,82.971,82.921,0.25]
[1646677474097,0.58991049,82.971,82.92,18.09]
[1646677474298,0.76325453,82.969,82.9,18.73592199]
[1646677474595,7.01325453,82.969,82.9,18.73592199]
[1646677475008,6.25,82.969,82.901,43.09839742]
[1646677475200,0.25,82.969,82.901,43.09839742]
[1646677475401,6.0,82.968,82.92,18.0878]
[1646677475601,0.25,82.967,82.92,18.0878]
[1646677475803,0.25,82.967,82.921,0.25]
[1646677476002,24.7449,82.972,82.921,0.25]
[1646677476201,24.7449,82.972,82.911,6.25]
[1646677476608,24.7449,82.972,82.911,6.89282199]
[1646677476801,24.7449,82.972,82.931,40.97472859]
[1646677477000,24.7449,82.972,82.932,0.25]
[1646677478003,6.25,82.971,82.921,6.027]
[1646677478202,6.25,82.971,75.375,0.52941176]
[1646677478203,6.90453547,82.971,82.922,0.25]
[1646677478405,6.027,82.97,82.902,0.64282199]
[1646677478603,6.90734142,82.969,82.892,6.027]
[1646677478803,6.25,82.968,82.892,6.027]
[1646677479003,6.25,82.971,82.91,18.0931]
[1646677479203,6.25,82.971,82.91,138.3931]
[1646677479402,0.25,82.971,82.91,138.3931]
[1646677479604,6.25,82.971,82.91,18.0931]
[1646677479904,6.25,82.971,82.911,0.25]
[1646677480105,6.25,82.971,82.92,18.0889]
[1646677480304,0.25,82.971,82.921,44.07195394]
[1646677480505,6.25,82.971,82.921,44.07195394]
[1646677480706,6.027,82.97,82.921,44.07195394]
[1646677480907,6.25,82.969,82.921,0.25]
[1646677481106,6.027,82.968,82.921,0.25]
[1646677481308,6.25,82.967,82.921,0.25]
[1646677481507,6.027,82.966,82.921,0.25]
[1646677481730,6.25,82.965,82.921,0.25]
[1646677482331,6.0,82.964,82.921,0.25]
[1646677482530,6.027,82.969,82.921,0.25]
[1646677482730,6.0,82.968,82.921,0.25]
[1646677482930,6.027,82.967,82.921,0.25]
[1646677483133,6.0,82.966,82.921,0.25]
[1646677483731,12.027,82.969,82.921,0.25]
[1646677483931,0.25,82.968,82.921,0.25]
[1646677484132,6.027,82.967,82.91,18.0926]
[1646677484433,6.25,82.966,82.91,18.0926]
[1646677484832,0.25,82.966,82.91,18.0926]
[1646677485031,0.25,82.966,82.911,48.39004287]
[1646677485233,18.0939,82.96,82.911,48.39004287]
[1646677485430,6.25,82.959,82.911,48.39004287]
[1646677485632,6.25,82.959,82.912,0.25]
[1646677486435,6.46568331,82.958,82.912,0.25]
[1646677486636,0.44033806,82.956,82.912,0.25]
[1646677486838,6.027,82.955,82.911,0.25]
[1646677487036,6.25,82.954,82.911,0.25]
[1646677487636,0.25,82.954,82.911,0.25]
[1646677488036,6.25,82.955,82.911,0.25]
[1646677488638,0.25,82.955,82.911,0.25]
[1646677488837,0.25,82.957,82.911,0.25]
[1646677490744,0.73005183,82.956,82.92,18.0899]
[1646677490945,0.25,82.957,82.921,0.25]
[1646677491345,28.783,82.958,82.921,0.25]
[1646677492646,0.25,82.957,82.911,0.25]
[1646677494646,0.40384739,82.956,82.911,0.25]
[1646677495048,0.40384739,82.956,82.92,18.0901]
[1646677495247,0.25,82.957,82.921,42.16601212]
[1646677496150,0.25,82.957,82.921,0.25]
[1646677496347,0.48410118,82.956,82.901,0.25]
[1646677496849,0.25,82.957,82.901,0.25]
[1646677497249,0.25,82.957,82.91,18.092]
[1646677497450,0.25,82.957,82.911,0.25]
[1646677498751,0.25,82.957,82.92,18.0894]
[1646677498950,0.25,82.957,82.921,0.25]
[1646677499749,6.25,82.957,82.921,0.25]
[1646677500151,0.53808967,82.956,82.901,0.25]
[1646677500551,6.029,82.955,82.91,18.0923]
[1646677500850,6.25,82.954,82.911,0.25]
[1646677501253,0.25,82.954,82.911,0.25]
[1646677501655,6.25,82.954,82.92,18.0891]
[1646677501851,6.0,82.953,82.921,0.25]
[1646677502050,0.25,82.954,82.921,0.25]
[1646677502252,0.25,82.957,82.921,0.25]
[1646677502450,6.25,82.957,82.921,0.25]
[1646677502650,6.25,82.957,82.93,18.0879]
[1646677502850,6.25,82.957,82.931,47.48790959]
[1646677503050,6.25,82.957,82.93,18.0879]
[1646677503249,6.25,82.957,82.921,0.25]
[1646677503450,6.25,82.957,82.891,6.25]
[1646677503651,6.25,82.957,82.91,18.0913]
[1646677503853,6.25,82.957,82.911,0.25]
[1646677505353,6.25,82.957,82.9,18.0942]
[1646677505354,0.75175219,82.955,82.901,0.25]
[1646677505558,0.75175219,82.953,82.901,0.25]
[1646677505754,0.75175219,82.951,82.901,0.25]
[1646677505953,0.75175219,82.949,82.901,0.25]
[1646677506153,7.00175219,82.949,82.901,0.25]
[1646677506355,6.029,82.948,82.901,0.25]
[1646677506555,7.00175219,82.947,82.87,14.43]
[1646677506754,6.03,82.946,82.851,24.6838]
[1646677506954,1.59157126,82.944,82.852,6.0]
[1646677507156,14.68245412,82.943,82.853,37.3004263]
[1646677507354,7.84157126,82.942,82.853,37.3004263]
[1646677507561,7.62257126,82.941,82.86,18.1019]
[1646677507755,6.25,82.94,82.86,32.5319]
[1646677507956,6.031,82.939,82.86,32.5319]
[1646677508156,6.25,82.938,82.86,32.5319]
[1646677508357,6.031,82.937,82.861,120.3]
[1646677508558,6.25,82.936,82.87,60.3097]
[1646677508759,6.25,82.935,82.88,18.0929]
[1646677508960,0.25,82.938,82.881,34.34678346]
[1646677509159,0.25,82.938,82.882,0.25]
[1646677509962,6.25,82.942,82.882,0.25]
[1646677510164,6.03,82.941,82.89,18.0951]
[1646677510364,6.25,82.94,82.891,0.25]
[1646677510563,6.03,82.939,82.891,0.25]
[1646677510763,6.25,82.938,82.891,0.25]
[1646677510962,30.9293,82.937,82.891,0.25]
[1646677511163,6.25,82.936,82.891,0.25]
[1646677511363,6.03,82.935,82.891,0.25]
[1646677511572,6.25,82.934,82.9,18.0952]
[1646677511762,6.25,82.934,82.901,0.25]
[1646677511763,6.03,82.933,82.901,0.25]
[1646677511963,6.0,82.932,82.901,0.25]
[1646677512362,6.0,82.956,82.901,0.25]
[1646677512563,0.25,82.955,82.91,18.0922]
[1646677512761,0.25,82.955,82.911,43.57282638]
[1646677512962,6.0,82.956,82.911,43.57282638]
[1646677513163,23.0901,82.957,82.911,43.57282638]
[1646677513465,23.0901,82.957,82.912,0.64282199]
[1646677513664,23.0901,82.957,82.911,43.57282638]
[1646677513963,23.0901,82.957,82.911,0.25]
[1646677514563,23.0901,82.957,82.901,0.64282199]
[1646677515388,23.0901,82.957,82.901,0.89282199]
[1646677515986,23.0901,82.957,82.921,40.59005319]